Cogmind - Beta 14 @@@ ROGUE MODE // 2024.11.24 @ 22:42:03 Player: Octa9on Result: Destroyed by G-34 Mercenary with Small Laser Performance ------------- Evolutions (1) 500 Regions Visited (2) 400 Robots Destroyed (11) 55 Value Destroyed (232) 232 Prototype IDs (2) 40 Alien Tech Used (0) 0 Bonus (0) 0 TOTAL SCORE: 1227 Bonus ------- None Cogmind --------- Core Integrity 0/400 Matter 264/300 Energy 97/100 System Corruption 0% Temperature Cool (6) Movement Core (100) Ox1 Location -9/Materials Parts ------- > --- POWER (1) -------- (None) > --- PROPULSION (2) --- (None) > --- UTILITY (4) ------ Disposable Heat Sink Visual Processing Unit ECM Suite > --- WEAPON (2) ------- Light Assault Rifle > --- INVENTORY (5) ---- Disposable Heat Sink Small Storage Unit Light Armor Plating Peak State ------------ > --- POWER ------------ Light Ion Engine > --- PROPULSION ------- Improved Aluminum Leg Improved Aluminum Leg > --- UTILITY ---------- Small Storage Unit Visual Processing Unit ECM Suite Light Armor Plating > --- WEAPON ----------- EM Pulse Gun EM Shotgun > --- INVENTORY -------- Light Ion Engine Disposable Heat Sink Disposable Heat Sink Light Armor Plating Light Armor Plating EM Pulse Gun Beam Cannon Assault Rifle [Rating: 14] Favorites ----------- Power Light Ion Engine Engine Light Ion Engine Propulsion Improved Aluminum Leg Leg Improved Aluminum Leg Utility Small Storage Unit Device ECM Suite Storage Small Storage Unit Processor Visual Processing Unit Protection Light Armor Plating Weapon EM Pulse Gun Energy Gun EM Pulse Gun Energy Cannon Beam Cannon Ballistic Gun Assault Rifle Build | -11 -10 -9 ------- Run | Yrd Mat Mat Slots Evolved 2 | . . 2 Power . | . . . Propulsion . | . . . Utility 2 | . . 2 Weapon . | . . . Parts Attached 25 | 6 3 16 Power 3 | 1 . 2 Engine 3 | 1 . 2 Core . | . . . Reactor . | . . . Propulsion 4 | 2 2 . Treads . | . . . Leg 4 | 2 2 . Wheel . | . . . Hover . | . . . Flight . | . . . Utility 10 | 1 1 8 Device 3 | . 1 2 Storage 1 | 1 . . Processor 1 | . . 1 Hackware . | . . . Protection 5 | . . 5 Artifact . | . . . Weapon 8 | 2 . 6 Energy Gun 5 | 2 . 3 Energy Cannon 1 | . . 1 Ballistic Gun 2 | . . 2 Ballistic Cannon . | . . . Launcher . | . . . Special Weapon . | . . . Impact Weapon . | . . . Slashing Weapon . | . . . Piercing Weapon . | . . . Special Melee Weapon . | . . . Unidentified Prototypes . | . . . Parts Lost 13 | . . 13 Power 3 | . . 3 Propulsion 2 | . . 2 Utility 3 | . . 3 Weapon 5 | . . 5 Highest Loss Streak 11 | . . 11 To Critical Strikes . | . . . Average Slot Usage (%) 92 | . 96 86 Engine 12 | . 14 9 Leg 23 | . 28 17 Device 11 | . 11 12 Storage 12 | . 14 9 Processor 4 | . . 9 Protection 4 | . . 11 Energy Gun 20 | . 28 11 Energy Cannon 1 | . . 3 Peak Build Rating 14 | 6 10 14 Average Rating 9 | 4 8 11 On Entrance 5 | . 6 10 Naked Turns . | . . . Heaviest Build 22 | 12 14 22 Greatest Support 26 | 20 26 26 Greatest Overweight (x) 5 | . . 5 Average Overweight (x) . | . . . Largest Inventory Capacity 8 | 8 8 8 Average Capacity 7 | 7 8 7 Most Carried 8 | 7 8 8 Average Carried 6 | 4 7 6 Final Capacity 8 | 8 8 5 Final Carried 8 | 6 8 3 Class Distribution -------------------- 100% | Mutant Dominant Class ---------------- Mutant | -10/Materials Mutant | -9/Materials Resources | -11 -10 -9 ----------- Run | Yrd Mat Mat Matter Collected 365 | 260 30 75 Remotely . | . . . Salvage Created 369 | 68 61 240 Parts 31 | 1 9 21 Haulers Intercepted . | . . . Recyclers Shooed . | . . . Parts Field Recycled . | . . . Retrieved Matter . | . . . Parts Self-Destructed . | . . . Prevented . | . . . Kills | -11 -10 -9 ------- Run | Yrd Mat Mat Combat Hostiles Destroyed 5 | . . 5 Guns 4 | . . 4 Cannons 1 | . . 1 Classes Destroyed 6 | 1 2 3 Recycler 1 | 1 . . Operator 1 | . 1 . Watcher 4 | . 2 2 Swarmer 2 | . . 2 Brawler 1 | . . 1 Sentry 2 | . . 2 Best Kill Streak 2 | 1 2 2 Combat Bots Only 2 | . . 2 Max Kills in Single Turn 1 | 1 1 1 Gunslinging . | . . . Exploded . | . . . Melee . | . . . Uniques/NPCs Destroyed . | . . . Combat | -11 -10 -9 -------- Run | Yrd Mat Mat Hostile Shots Fired 162 | . 1 161 Missed 34 | . 1 33 Damage Taken 1556 | . 30 1526 Core 423 | . 15 408 Absorbed by Shields . | . . . Core Remaining (%) 97 | 100 94 . Volleys Fired 29 | 3 6 20 Largest 2 | 2 2 2 Hottest 105 | 80 80 105 Shots Fired 51 | 6 12 33 Gun 42 | 6 12 24 Cannon 9 | . . 9 Launcher . | . . . Special . | . . . Kinetic 10 | . . 10 Thermal 9 | . . 9 Explosive . | . . . Electromagnetic 32 | 6 12 14 Robot Hit Streak 12 | 3 3 12 Robot Miss Streak 3 | 2 3 3 Penetration Max . | . . . Secondary Targets 1 | . . 1 Max Gunslinging Chain 1 | . . 1 Shots Hit Robots 34 | 4 5 25 Core Hits 20 | 2 2 16 Critical Kills . | . . . Critical Parts Destroyed . | . . . Critical Strikes . | . . . Melee Attacks . | . . . Impact . | . . . Slashing . | . . . Piercing . | . . . Sneak Attacks . | . . . Combat Hostiles . | . . . Follow-up Attacks . | . . . Damage Inflicted 542 | 53 147 342 Guns 410 | 53 104 253 Cannons 89 | . . 89 Explosions 43 | . 43 . Melee . | . . . Ramming . | . . . Kinetic 97 | . . 97 Thermal 132 | . 43 89 Explosive . | . . . Electromagnetic 313 | 53 104 156 Impact . | . . . Slashing . | . . . Piercing . | . . . Highest Corruption . | . . . Average Corruption . | . . . Corruption Purged . | . . . Corruption Blocked . | . . . Overload Shots . | . . . Overflow Damage 35 | . 35 . Projectiles . | . . . Explosions 35 | . 35 . Melee . | . . . Knockbacks . | . . . Impact . | . . . Kinetic . | . . . Secondary . | . . . Self-Inflicted Damage 30 | . 30 . Shots 1 | . 1 . Rammed . | . . . Targets Rammed . | . . . Kicked . | . . . Crushed . | . . . Highest Temperature 261 | 54 36 261 Average Temperature 67 | 29 16 89 Received Heat Transfer 486 | . . 486 Siege Activations . | . . . Robots Corrupted . | . . . Combat Hostiles . | . . . Parts Fried 1 | 1 . . Impact Corruptions . | . . . Robots Melted . | . . . Combat Hostiles . | . . . Parts Melted . | . . . Heat Transferred 235 | . 50 185 Parts Sabotaged . | . . . Parts Stolen . | . . . Parts Stripped . | . . . Power Chain Reactions 1 | . 1 . Alert | -11 -10 -9 ------- Run | Yrd Mat Mat Peak Influence 190 | 5 74 190 Initial 31 | . 3 31 Average 47 | 1 20 100 Maximum Alert Level . | . . . Low Security (%) 100 | 100 100 100 Level 1 . | . . . Level 2 . | . . . Level 3 . | . . . Level 4 . | . . . Level 5 . | . . . High Security . | . . . Max Security . | . . . Squads Dispatched 1 | . . 1 Investigation . | . . . Extermination . | . . . Reinforcement 1 | . . 1 Assault . | . . . Garrison . | . . . Intercept . | . . . Searches Triggered . | . . . Construction Impeded . | . . . Haulers Reinforced . | . . . Active Scanning Responses . | . . . Cargo Convoy Interrupts . | . . . Stealth | -11 -10 -9 --------- Run | Yrd Mat Mat Distress Signals 3 | . . 3 Communications Jammed . | . . . Distress Signals . | . . . Times Spotted 25 | . 7 18 Peak Tracking Total 10 | . 2 10 Tactical Retreats 3 | . 1 2 Traps | -11 -10 -9 ------- Run | Yrd Mat Mat Traps Triggered . | . . . Indirectly . | . . . Trap Hack Attempts . | . . . Triggered . | . . . Disarmed . | . . . Reprogrammed . | . . . Reused . | . . . Traps Extracted . | . . . Installed . | . . . Triggered . | . . . Machines | -11 -10 -9 ---------- Run | Yrd Mat Mat Machines Disabled . | . . . Max in Single Turn . | . . . Machines Repaired . | . . . Machines Dismantled . | . . . Machines Sabotaged . | . . . Overloaded Fab Kills . | . . . Hacking | -11 -10 -9 --------- Run | Yrd Mat Mat Machines Accessed 5 | . 4 1 Terminals 4 | . 3 1 Fabricators . | . . . Repair Stations . | . . . Recycling Units 1 | . 1 . Scanalyzers . | . . . Garrison Access . | . . . Total Hacks 10 | . 8 2 Successful 6 | . 5 1 Failed 4 | . 3 1 Catastrophic 2 | . 2 . Database Lockouts . | . . . Manual . | . . . Terminals 9 | . 7 2 Fabricators . | . . . Repair Stations . | . . . Recycling Units 1 | . 1 . Scanalyzers . | . . . Garrison Access . | . . . Terminal Hacks 5 | . 4 1 Robot Analysis 1 | . 1 . Prototype ID Bank 1 | . 1 . Locate Traps 1 | . 1 . Zone Layout 2 | . 1 1 Fabricator Hacks . | . . . Repair Station Hacks . | . . . Recycling Unit Hacks 1 | . 1 . Retrieve Components 1 | . 1 . Scanalyzer . | . . . Garrison Access Hacks . | . . . Unauthorized Hacks . | . . . Terminals . | . . . Fabricators . | . . . Repair Stations . | . . . Recycling Units . | . . . Scanalyzers . | . . . Garrison Access . | . . . Data Cores Recovered 1 | . 1 . Used . | . . . Hacking Detections 2 | . 2 . Full Trace Events 1 | . 1 . Feedback Events . | . . . Feedback Blocked . | . . . Robot Schematics Acquired . | . . . Robots Built . | . . . Authchips . | . . . Time . | . . . Total Robot Build Rating . | . . . Part Schematics Acquired . | . . . Parts Built . | . . . Authchips . | . . . Time . | . . . Total Part Build Rating . | . . . Parts Repaired . | . . . Time . | . . . Parts Recycled . | . . . Recycled Matter . | . . . Retrieved Matter . | . . . Retrieved Components 1 | . 1 . Parts Scanalyzed . | . . . Part Schematics Acquired . | . . . Parts Damaged . | . . . Bothacking | -11 -10 -9 ------------ Run | Yrd Mat Mat Used RIF Installer . | . . . Robots Hacked . | . . . Non-combat . | . . . Combat . | . . . Robot Hacks Applied . | . . . Relay Couplers Released . | . . . Fabnet Peak Effective % . | . . . Robots Rewired . | . . . Allies Hacked . | . . . Hacks Repelled . | . . . Allies | -11 -10 -9 -------- Run | Yrd Mat Mat Total Allies . | . . . Largest Group . | . . . Highest-Rated Group . | . . . Highest-Rated Ally . | . . . Total Orders . | . . . Ally Attacks . | . . . Total Damage . | . . . Kills . | . . . Allies Corrupted . | . . . Allies Melted . | . . . Intel | -11 -10 -9 ------- Run | Yrd Mat Mat Robot Analysis Total 1 | . 1 . Derelict Logs Recovered . | . . . Drone Launches . | . . . Drone Recoveries . | . . . Exploration | -11 -10 -9 ------------- Run | Yrd Mat Mat Turns Passed 654 | 87 328 239 Spaces Moved 404 | 53 234 117 Core 9 | 1 . 8 Treads . | . . . Legs 395 | 52 234 109 Wheels . | . . . Hover . | . . . Flight . | . . . Fastest Speed 50 | 50 120 120 Average Speed 123 | 118 120 131 Slowest Speed 300 | 120 120 300 Overloaded Moves . | . . . Propulsion Burnouts . | . . . Robots Hopped . | . . . Cave-ins Triggered . | . . . Exploration Rate (%) 23 | 4 41 24 Regions Visited 2 Branch Regions . Pre-discovered Areas . | . . . Known Exits Taken . | . . . Unknown Exits Taken 2 | 1 1 . Scrap Searched . | . . . Spaces Dug . | . . . Terrain Destroyed 8 | . 8 . Melee . | . . . Projectile . | . . . AOE 8 | . 8 . Terrain Rammed . | . . . Walls Destroyed . | . . . Machines Disabled . | . . . Actions | -11 -10 -9 --------- Run | Yrd Mat Mat Total 508 | 68 273 167 Wait 26 | . 13 13 Move 402 | 52 233 117 Hop . | . . . Pick Up 17 | 7 9 1 Fast Attach 8 | 5 1 2 Attach 9 | 1 . 8 Detach . | . . . Swap 8 | . 2 6 Drop 9 | . 9 . Fire 29 | 3 6 20 Melee . | . . . Ram . | . . . Kick . | . . . Crush . | . . . Escape Stasis . | . . . Rewire . | . . . Trap . | . . . Miscellaneous . | . . . Route ------- -11/Scrapyard -10/Materials (discovered 2 exits: *Mat / [*Min]) -9/Materials History --------- Turn | Location | Event 17 | -11/Scrapyard | Discovered new exit (range 16) 88 | -11/Scrapyard | Entered Materials 145 | -10/Materials | Discovered new exit (range 12) 307 | -10/Materials | Build established: Mutant 375 | -10/Materials | Discovered new exit (range 10) 416 | -10/Materials | Entered another Materials area 416 | -9/Materials | Evolved 2 slots: Utility x2 613 | -9/Materials | Core integrity fell below 50% 645 | -9/Materials | Core integrity fell below 20% 655 | -9/Materials | Destroyed by G-34 Mercenary with Small Laser Last Messages --------------- 00620_ K-01 Serf collects debris. 00621_ Lgt. Armor Plating destroyed. 00626_ Connecting with Terminal... >>Layout(Zone) Retrieving Zone 6T layout... Downloaded map data. 00635_ S-10 Pest destroyed. 00636_ Acquired 11 matter. 00641_ Critical hit (Destroy). 00641_ Acquired Lgt. Assault Rifle. 00647_ Lgt. Armor Plating destroyed. 00649_ O-16 Technician uses terminal to summon reinforcements. 00649_ ALERT: Hostiles spotted, dispatching reinforcements to Terminal M004. 00649_ O-16 Technician locks terminal. 00650_ Imp. Ion Engine destroyed. 00651_ Y-45 Defender destroyed. 00653_ K-01 Serf collects debris. 00654_ S-10 Pest destroyed. Map ----- +----------------------------------------------------+ | ??????????? ????T???# ##### ###########?? | | ??????????? ??#?? ???# # #??????? | | ?????????? ??# ?[???# "" + #??????? | | ?????????? ?# ???# ""S # #??????? | | ?????????? ? ???# "" ###### #??????? | | ????????? ###+#### #????? #??????? | | ????????? # #?????? #?????? | | ????????? + // #?????? #?????? | | ????????? # // #??????? #?????? | | ?????????? ####### # #??????? #?????? | | ??????????????????????# # #???????? #?????? | | ??????????????????????# # #?#" ??????????? | | ??????????????????????# # #?#"""??????????? | | ??????????????????????# ############??????????? | | ??????????????????????# #??# #??????????? | | ??????????????????????# ####??# /??????????? | | ??????????????????????# #?????# #??????????? | | ??????????????????????#=#?????#####+###??????????? | | ??????????????????##### #?????????# #?#??????????? | | ??????????????????# /%########### ###??????????? | | ??????????????????# !%[ ??????????? | | ??????????????????# = ??????????? | | ??????????????????# ??????????? | | ??????????????????# ###############??????????? | | ????????????????#####r#####????# #??????????? | | ????????????????# kg%@#????# +??????????? | | ????????????????# """o"T"!#????# #??????????? | | ????????????????# """ %=#????# #??????????? | | ????????????????# """ = g*#????# #??????????? | | ????????????????# """ #????# #??????????? | | ????????????????# """ #????########??????????? | | ????????????????# #???????????#??????????? | | ????????????????# #????########??????????? | | ????????????????###########????# #??????????? | | ???????????????????????????????# #??????????? | | ????????????????????????######## +??????????? | | ????????????????????????# # #??????????? | | ????????############????# "" ? #??????????? | | ???????? ###### Y" # #??????????? | | ???????? + "" ########??????????? | | ???????? ###### #?????????????????? | | ????????#########+#####?# #?????????????????? | | ?????????????????????????????????????????????????? | | ?????????????????????????????????????????????????? | | ?????????????????????????????????????????????????? | | ?????????????????????????????????????????????????? | | ?????????????????????????????????????????????????? | | ?????????????????????????????????????????????????? | | ?????????????????????????????????????????????????? | | ?????????????????????????????????????????????????? | +----------------------------------------------------+ Best States ------------- Heat Dissipation 28 Coolant Potential 50 Energy Generation 12 Energy Capacity 265 Matter Stores 300 Matter Capacity 300 Sight Range 18 Terrain Scan Density 10 ECM Strength 1 Armor Coverage 300 Evasion (%) 55 Item Schematics ----------------- None Robot Schematics ------------------ None Fabricated ------------ Nothing Alien Tech Used ----------------- None Achievements -------------- None Challenges ------------ None Game ------ Seed HelicalSwarmMicrothruster Manual? 0 Play Time 00:17:54 Cumulative 5.2 hours Start 2024.11.24 @ 22:25:09 End 2024.11.24 @ 22:42:03 Sessions 1 Manual Loads 0 Difficulty Rogue Special Mode None Game No. 4 Rogue 4 Adventurer 0 Explorer 0 Win Type - Total 0 Types 0/0/0/0/0/0/0/0/0 Lore% 4 Gallery% 6 Achievement% 9 Wizard Run 0 Options --------- Layout 1 ASCII 0 Keyboard 0 Movement Mouse Keybinds 0 Fullscreen 2 Font 24/Crisp Map View 50x35 Zoom Use 0% Tactical HUD 1 Map Filters NONE Filters NONE Steam 0 RUN: a48c8b5a-798d-4103-8961-b701c32e0481